lending/lending_fUSD_20260104
["ID","MTS","AMOUNT","RATE_DAILY","PERIOD"]
[400394936,1767508238678,-357.12,0.00042274,30]
[400394937,1767508238688,-150.0,0.00042274,30]
[400394938,1767508238699,-341.74,0.00042274,30]
[400394939,1767508238709,-249.19,0.00042274,30]
[400394940,1767508238719,-178.88,0.00042278,30]
[400394941,1767508238730,-466.13,0.00042278,30]
[400394942,1767508238740,-171.15,0.00042278,30]
[400394943,1767508238750,-302.17,0.00042278,30]
[400394944,1767508238760,-150.0,0.00042278,30]
[400394945,1767508238770,-178.88,0.00042278,30]
[400394946,1767508238784,-171.15,0.00042278,30]
[400394947,1767508238794,-466.13,0.00042278,30]
[400394948,1767508238804,-178.88,0.00042278,30]
[400394949,1767508238814,-171.15,0.00042278,30]
[400394950,1767508238824,-3068.0,0.00042527,2]
[400394951,1767508238834,-300.0,0.00042548,30]
[400394952,1767508238845,-250.0,0.0004263,90]
[400394953,1767508238855,-719.0,0.00042883,7]
[400394954,1767508238865,-991.71991976,0.000429,2]
[400394955,1767508238875,-52612.9826884,0.0004295,2]
[400394956,1767508238885,-3573.2487033,0.0004295,2]
[400394957,1767508238895,-3161.7864448,0.0004295,2]
[400394958,1767508238905,-500.0,0.00042973,10]
[400394959,1767508238915,-500.0,0.00042973,10]
[400394960,1767508238925,-163.59427283,0.00042973,10]
[400394961,1767508238935,-500.0,0.00042973,10]
[400394962,1767508238945,-500.0,0.00042973,10]
[400394963,1767508238955,-500.0,0.00042973,10]
[400394964,1767508238965,-676.40324274,0.00042999,30]
[400394965,1767508238978,-300.0,0.00042999,30]
[400394966,1767508238988,-33508.6748,0.00043,2]
[400394967,1767508238998,-1000.0,0.00043,2]
[400394968,1767508239008,-197.0,0.00043,120]
[400394969,1767508239246,-263.96841008,0.00043,15]
[400394970,1767508239262,-266.30776547,0.00043,2]
[400394971,1767508239272,-177.33198716,0.00043,2]
[400394972,1767508239294,-3009.46454132,0.00043,19]
[400394973,1767508239307,-177.38443539,0.00043,2]
[400394974,1767508239317,-438.12402255,0.00043,2]
[400394975,1767508239328,-300.0,0.00043006,30]
[400394976,1767508239338,-1000.0,0.00043007,30]
[400394977,1767508239348,-1000.0,0.00043007,30]
[400394978,1767508239359,-1000.0,0.00043007,30]
[400394979,1767508239368,-1000.0,0.00043007,30]
[400394980,1767508239379,-1000.0,0.00043007,30]
[400394981,1767508239389,-487.757,0.00043007,30]
[400394982,1767508239399,-250.0,0.00043014,120]
[400394983,1767508239409,-303.34,0.00043068,120]
[400394984,1767508239422,-266.30776546,0.00043082,2]
[400394985,1767508239432,-177.33198716,0.00043082,2]
[400394986,1767508239443,-438.12402254,0.00043082,2]
[400394987,1767508239453,-173.79794353,0.0004309,7]
[400394988,1767508239463,-173.79794353,0.0004309,7]
[400394989,1767508239474,-300.0,0.00043095,30]
[400394990,1767508239484,-306.505367,0.00043098,30]
[400394991,1767508239494,-818625.11596999,0.000431,120]
[400394994,1767508239757,-68581.91747912,0.000431,120]
[400394995,1767508239770,-1173.22049338,0.000431,120]
[400394996,1767508239816,-93993.93379538,0.000431,120]
[400394997,1767508239936,-1279.88783724,0.000431,120]
[400394998,1767508239948,-433.44387043,0.000431,120]
[400394999,1767508239960,-12958.15062446,0.000431,120]
[400395000,1767508239972,-1590.88900083,0.000431,120]
[400395003,1767508243350,-510.33027088,0.000431,120]
[400395004,1767508243411,-1015.95344153,0.000431,120]
[400395005,1767508243423,-4334.78576873,0.000431,120]
[400395006,1767508243440,-328024.33855295,0.000431,120]
[400395007,1767508243453,-3865.14,0.000431,120]
[400395008,1767508243465,-782.72427508,0.000431,120]
[400395009,1767508243477,-34903.65924872,0.000431,120]
[400395010,1767508243490,-4139.35275217,0.000431,120]
[400395011,1767508243502,-2146.20119742,0.000431,120]
[400395012,1767508243515,-46413.60020385,0.000431,120]
[400395013,1767508243527,-127313.11659992,0.000431,120]
[400395014,1767508243539,-1164.99761564,0.000431,120]
[400395015,1767508243551,-4779.79456686,0.000431,120]
[400395016,1767508243564,-1302.81008527,0.000431,120]
[400395017,1767508243577,-813.26362631,0.000431,120]
[400395018,1767508243590,-392.42322,0.000431,120]
[400395019,1767508243602,-412.05845751,0.000431,120]
[400395020,1767508243616,-4963.42952712,0.000431,120]
[400395021,1767508243628,-51028.57691713,0.000431,120]
[400395022,1767508244750,-1101.40168,0.000431,120]
[400395023,1767508244762,-869.12913994,0.000431,120]
[400395027,1767508245488,-4580.66725332,0.000431,120]
[400395028,1767508245548,-44374.96821623,0.000431,120]
[400395029,1767508245560,-5654.52714948,0.000431,120]
[400395030,1767508245664,-1928.75970184,0.000431,120]
[400395031,1767508245676,-591.65666419,0.000431,120]
[400395032,1767508245691,-751.26109565,0.000431,120]
[400395037,1767508268407,600.0,0.00027499,120]
[400395102,1767508386411,300.0,0.00027498,120]
[400395216,1767508688782,691.00404594,0.00030248,120]
[400395247,1767508817092,500.0,0.00043272,120]
[400395248,1767508817328,500.0,0.00043272,120]
[400395249,1767508817569,218.24142008,0.00043272,120]
[400395291,1767508945159,214.64,0.00013699,2]
[400395386,1767509171812,847.21819411,0.00015356,2]
[400395387,1767509219127,-154.31168706,0.00020187,2]
[400395388,1767509233123,-60.32831294,0.00020187,2]
[400395389,1767509233146,-250.0,0.00020846,2]
[400395390,1767509233166,-198.40981234,0.00020846,2]
[400395391,1767509233187,-313.56515567,0.00022206,2]
[400395392,1767509233207,-300.0,0.00022206,2]
[400395393,1767509233228,-301.54147244,0.00022206,2]
[400395394,1767509233250,-468.03577823,0.00022206,2]
[400395395,1767509242082,-214.64,0.00026676,2]
[400395396,1767509242104,-214.64,0.00033165,2]
[400395397,1767509242125,-174.97,0.00033561,2]
[400395398,1767509242146,-171.88753179,0.000349,30]
[400395399,1767509250100,-18.98734821,0.000349,30]
[400395400,1767509250140,-271.91421925,0.00037988,2]
[400395421,1767509412305,300000.0,0.00043273,120]
[400395423,1767509422165,300000.0,0.00043273,120]
[400395424,1767509426744,250.0,0.00017,2]
[400395429,1767509431720,-3310.578872,0.00027908,2]
[400395430,1767509431731,-151.0,0.00027908,2]
[400395431,1767509431741,-155.91654087,0.00029759,52]
[400395432,1767509431751,-1484.13235153,0.00030622,2]
[400395433,1767509431761,-166.73450469,0.00030622,55]
[400395434,1767509431771,-180.74324819,0.00031486,58]
[400395435,1767509431786,-197.33232698,0.00032349,60]
[400395436,1767509431797,-216.14893791,0.00033212,63]
[400395437,1767509431806,-236.95503708,0.00034076,66]
[400395438,1767509431816,-259.5758704,0.00034939,69]
[400395439,1767509431826,-283.87603752,0.00035802,72]
[400395440,1767509431836,-309.74660357,0.00036665,75]
[400395441,1767509431846,-480.15085186,0.00037341,2]
[400395442,1767509431859,-48.87158014,0.00037341,2]
[400395443,1767509431869,-337.09745028,0.00037529,78]
[400395444,1767509431878,-315.656713,0.00038178,2]
[400395445,1767509431890,-84.343287,0.00038178,2]
[400395446,1767509431899,-1398.98959839,0.00038178,3]
[400395447,1767509431911,-201.01040161,0.00038178,3]
[400395448,1767509431921,-300.0,0.00038178,3]
[400395449,1767509431931,-863.70220047,0.00038179,2]
[400395451,1767509431943,-633.97909884,0.00038179,2]
[400395452,1767509432168,300000.0,0.00043273,120]
[400395454,1767509437737,-1588.94870069,0.00038179,2]
[400395455,1767509437748,-365.85240746,0.00038392,81]
[400395456,1767509437758,-500.0,0.00038678,45]
[400395457,1767509437768,-197.75129029,0.00038678,30]
[400395458,1767509437781,-302.24870971,0.00038678,30]
[400395459,1767509437792,-400.0,0.00038964,5]
[400395460,1767509437803,-650.59591389,0.00038966,2]
[400395461,1767509437813,-2333.71,0.00038966,2]
[400395462,1767509437823,-395.94598553,0.00039255,84]
[400395463,1767509437834,-214.64,0.00039654,2]
[400395464,1767509437844,-351.94328179,0.00040073,5]
[400395465,1767509437854,-500.0,0.00040073,5]
[400395466,1767509437863,-427.32108938,0.00040119,87]
[400395467,1767509437873,-527.0,0.00040273,10]
[400395468,1767509437884,-197.38,0.00040742,120]
[400395469,1767509437894,-560.0,0.00040801,5]
[400395470,1767509437904,-5000.0,0.00040861,120]
[400395471,1767509437914,-200.0,0.00040922,2]
[400395472,1767509437924,-207.4,0.00040922,2]
[400395473,1767509437934,-215.0738,0.00040922,2]
[400395474,1767509437944,-223.0315306,0.00040922,2]
[400395475,1767509437954,-231.28369723,0.00040922,2]
[400395476,1767509437963,-239.84119403,0.00040922,2]
[400395477,1767509437973,-248.71531821,0.00040922,2]
[400395478,1767509437982,-257.91778498,0.00040922,2]
[400395479,1767509437992,-800.0,0.00040955,5]
[400395480,1767509438002,-459.92736406,0.00040982,90]
[400395481,1767509438012,-150.0,0.00041335,2]
[400395482,1767509438022,-267.46074303,0.00041478,2]
[400395483,1767509438031,-250.0,0.00041787,120]
[400395484,1767509438043,-493.71996403,0.00041845,93]
[400395485,1767509438053,-315.0,0.00042,120]
[400395486,1767509438063,-172.26,0.00042438,30]
[400395487,1767509438073,-171.15,0.00042438,30]
[400395488,1767509438083,-340.01637604,0.00042531,2]
[400395489,1767509438093,-500.0,0.00042597,120]
[400395490,1767509438107,-528.65861587,0.00042709,95]
[400395491,1767509438117,-500.0,0.00042734,120]
[400395493,1767509438128,-2080.31241457,0.00042783,15]
[400395494,1767509438138,-220.26130899,0.00042783,9]
[400395495,1767509438149,-476.2149947,0.00042789,15]
[400395496,1767509438159,-2080.31241455,0.00042807,15]
[400395497,1767509438169,-476.21499466,0.00042812,15]
[400395498,1767509438180,-2080.31241455,0.00042831,15]
[400395499,1767509438190,-476.21499466,0.00042836,15]
[400395500,1767509438200,-277.35679052,0.00042847,2]
[400395501,1767509438211,-2080.31241455,0.00042855,15]
[400395502,1767509438221,-476.21499466,0.00042859,15]
[400395503,1767509438231,-500.0,0.00042868,31]
[400395504,1767509438241,-154.20422953,0.00042869,31]
[400395505,1767509438251,-500.0,0.00042869,31]
[400395506,1767509438261,-202.0945225,0.00042869,31]
[400395507,1767509438272,-500.0,0.00042869,31]
[400395508,1767509438284,-500.0,0.00042869,31]
[400395509,1767509438299,-500.0,0.00042869,31]
[400395510,1767509438309,-585.9483003,0.00042869,31]
[400395511,1767509438319,-500.0,0.00042869,31]
[400395512,1767509438329,-500.0,0.00042869,31]
[400395513,1767509438339,-500.0,0.00042869,31]
[400395514,1767509438349,-500.0,0.00042869,31]
[400395515,1767509438359,-500.0,0.00042869,31]
[400395516,1767509438371,-500.0,0.00042869,31]
[400395517,1767509438381,-500.0,0.00042869,31]
[400395518,1767509438391,-500.0,0.00042869,31]
[400395519,1767509438400,-500.0,0.00042869,31]
[400395520,1767509438410,-524.58547052,0.00042869,31]
[400395521,1767509438420,-500.0,0.00042869,31]
[400395523,1767509438431,-500.0,0.00042869,31]
[400395524,1767509438440,-500.0,0.00042869,31]
[400395525,1767509438450,-500.0,0.00042869,31]
[400395526,1767509438461,-500.0,0.00042869,31]
[400395527,1767509438475,-500.0,0.00042869,31]
[400395528,1767509438485,-500.0,0.00042869,31]
[400395530,1767509438495,-500.0,0.00042869,31]
[400395531,1767509438508,-500.0,0.00042869,31]
[400395532,1767509438519,-500.0,0.00042869,31]
[400395533,1767509438529,-500.0,0.00042869,31]
[400395535,1767509438540,-500.0,0.00042869,31]
[400395536,1767509438551,-500.0,0.00042869,31]
[400395537,1767509438560,-500.0,0.00042869,31]
[400395539,1767509438570,-500.0,0.00042869,31]
[400395540,1767509438581,-500.0,0.00042869,31]
[400395541,1767509438592,-440.66750443,0.00042869,31]
[400395542,1767509438603,-500.0,0.00042869,31]
[400395543,1767509438613,-500.0,0.00042869,31]
[400395544,1767509438623,-500.0,0.00042869,31]
[400395545,1767509438634,-500.0,0.00042869,31]
[400395546,1767509438644,-500.0,0.00042869,31]
[400395547,1767509438654,-213.455,0.0004287,65]
[400395549,1767509438664,-151.0,0.0004287,120]
[400395550,1767509438675,-588.773,0.0004287,65]
[400395551,1767509438685,-500.0,0.00042871,120]
[400395552,1767509438695,-491.65635751,0.00042872,31]
[400395553,1767509438705,-527.12994517,0.00042872,31]
[400395554,1767509438716,-40216.70965314,0.00042873,2]
[400395555,1767509438730,-34129.5813944,0.00042873,2]
[400395556,1767509438742,-1023.47056,0.00042873,2]
[400395557,1767509438754,-305.96311241,0.00042873,2]
[400395558,1767509438765,-642.12284043,0.00042873,2]
[400395559,1767509438778,-12572.53139323,0.00042873,2]
[400395563,1767509439185,-7410.48326695,0.00042873,2]
[400395572,1767509439962,-141969.78147911,0.00042873,2]
[400395574,1767509440028,-617.05038201,0.00042873,2]
[400395575,1767509440040,-1372.94995013,0.00042873,2]
[400395576,1767509440052,-2558.00938181,0.00042873,2]
[400395577,1767509440154,-1529.97141358,0.00042873,2]
[400395578,1767509440222,-1647.4496665,0.00042873,2]
[400395581,1767509442121,126192.4,0.00043273,120]
[400395588,1767509443912,-17.14574304,0.00042873,2]
[400395589,1767509443924,-7834.50289934,0.00042873,2]
[400395595,1767509445637,-87377.99999981,0.00042873,2]
[400395596,1767509445763,-538.9811538,0.00042873,2]
[400395597,1767509445775,-110974.81836287,0.00042873,2]
[400395598,1767509445838,-928.58511849,0.00042873,2]
[400395599,1767509445853,-1269.28102245,0.00042873,2]
[400395600,1767509445864,-598.44994,0.00042873,2]
[400395604,1767509446410,5050.0,0.00043273,36]
[400395610,1767509470503,195.0,0.00032596,120]
[400395611,1767509471672,358.61010343,0.00032565,120]
[400395629,1767509691470,10000.0,0.00032877,120]
[400395630,1767509699442,10000.0,0.00032877,120]
[400395631,1767509706508,10000.0,0.00032877,120]
[400395633,1767509712890,10000.0,0.00032877,120]
[400395634,1767509719984,10000.0,0.00032877,120]
[400395635,1767509726488,-151.49767635,0.00032596,61]
[400395636,1767509726561,-154.23606842,0.00033361,64]
[400395637,1767509726634,-157.78215461,0.00034127,66]
[400395638,1767509726703,-161.98141083,0.00034892,69]
[400395639,1767509726777,-166.74453068,0.00035658,72]
[400395640,1767509726852,-174.05511264,0.00035789,120]
[400395641,1767509726922,-226.97311419,0.00035789,120]
[400395642,1767509727009,-195.0,0.00035789,120]
[400395643,1767509727088,-300.0,0.00035789,120]
[400395644,1767509727159,-172.01125721,0.00036423,74]
[400395645,1767509727228,-195.0,0.00037212,120]
[400395646,1767509727303,-183.8885474,0.00037954,79]
[400395647,1767509727379,-190.43726157,0.0003872,82]
[400395648,1767509727452,-197.36068478,0.00039485,85]
[400395649,1767509727525,-204.63953578,0.00040251,87]
[400395650,1767509727604,-212.25723695,0.00041016,90]
[400395651,1767509727678,-220.19933558,0.00041782,92]
[400395652,1767509727749,-500.0,0.00042263,120]
[400395653,1767509727820,-150.0,0.000423,60]
[400395654,1767509727894,-168.0,0.00042492,120]
[400395655,1767509727965,-150.0,0.00042726,120]
[400395656,1767509728037,-150.0,0.00042863,120]
[400395657,1767509728106,-174.04,0.00042869,65]
[400395658,1767509728175,-713.3,0.00042869,65]
[400395659,1767509728242,-500.0,0.00042888,31]
[400395660,1767509728319,-500.0,0.00042888,31]
[400395661,1767509728393,-500.0,0.00042888,31]
[400395662,1767509728466,-500.0,0.00042888,31]
[400395663,1767509728541,-500.0,0.00042888,31]
[400395664,1767509728638,-500.0,0.00042888,31]
[400395665,1767509728723,-452.45854705,0.00042888,31]
[400395666,1767509728801,-635.40367079,0.00042888,31]
[400395667,1767509728877,-368.99096162,0.00042999,31]
[400395668,1767509728949,-417.58663895,0.00042999,31]
[400395669,1767509729019,-150.0,0.00043,120]
[400395670,1767509729087,-4158.52837319,0.00043,30]
[400395671,1767509729154,-999.99999905,0.00043,60]
[400395672,1767509729221,-165894.8132,0.00043,120]
[400395673,1767509729291,-340.82720884,0.00043,120]
[400395674,1767509729372,-151.319,0.00043008,30]
[400395675,1767509729444,-153.7919619,0.00043073,60]
[400395676,1767509729511,-522.30646286,0.00043099,45]
[400395677,1767509729578,-500.0,0.00043099,30]
[400395678,1767509729644,-500.0,0.00043099,30]
[400395679,1767509729710,-259.94132505,0.00043099,30]
[400395680,1767509729776,-157.10109623,0.000431,31]
[400395681,1767509729849,-2045476.52763045,0.000431,120]
[400395682,1767509729919,-152.0,0.000431,120]
[400395683,1767509729999,-171.56,0.000431,30]
[400395684,1767509730071,-157.8,0.000431,30]
[400395685,1767509730143,-2153649.5577998,0.000431,120]
[400395686,1767509730215,-616460.08219723,0.000431,120]
[400395687,1767509730312,10000.0,0.00032877,120]
[400395689,1767509737206,10000.0,0.00032877,120]
[400395690,1767509740467,-1537189.47560257,0.000431,120]
[400395691,1767509740539,-2153649.5577998,0.000431,120]
[400395692,1767509740618,-2153649.5577998,0.000431,120]
[400395693,1767509740686,-380.34033659,0.000431,30]
[400395694,1767509740752,-151.0,0.000431,120]
[400395695,1767509740822,-166.514204,0.000431,120]
[400395696,1767509740893,-150.0,0.00043137,120]
[400395697,1767509740963,-500.0,0.00043163,30]
[400395698,1767509741027,-500.0,0.00043163,30]
[400395699,1767509741090,-500.0,0.00043163,30]
[400395700,1767509741152,-500.0,0.00043163,30]
[400395702,1767509741215,-500.0,0.00043163,30]
[400395705,1767509741285,-500.0,0.00043163,30]
[400395708,1767509741361,-500.0,0.00043163,30]
[400395711,1767509741432,-500.0,0.00043163,30]
[400395712,1767509741500,-500.0,0.00043163,30]
[400395713,1767509741568,-500.0,0.00043163,30]
[400395715,1767509741637,-500.0,0.00043163,30]
[400395718,1767509741704,-296.62190977,0.00043163,30]
[400395720,1767509741767,-300.0,0.00043172,60]
[400395721,1767509741830,-152.56,0.00043189,120]
[400395723,1767509741898,-9061.2080467,0.000432,60]
[400395726,1767509741967,-214.65924374,0.000432,120]
[400395729,1767509742034,-298.679,0.000432,60]
[400395731,1767509742099,-202.63,0.000432,120]
[400395732,1767509742336,-1000.0,0.000432,120]
[400395733,1767509742405,-997.71,0.0004321,60]
[400395734,1767509742470,-500.0,0.00043211,120]
[400395736,1767509742542,-500.0,0.00043211,60]
[400395738,1767509742620,-500.0,0.00043221,120]
[400395741,1767509742687,-500.0,0.00043221,120]
[400395743,1767509742750,-250.0,0.00043222,40]
[400395745,1767509742816,-250.0,0.00043222,41]
[400395747,1767509742882,-250.0,0.00043222,42]
[400395749,1767509742951,-250.0,0.00043222,43]
[400395751,1767509743020,-250.0,0.00043222,44]
[400395753,1767509743084,-198.67583572,0.00043222,120]
[400395754,1767509743148,-250.0,0.00043223,60]
[400395755,1767509743213,-250.0,0.00043223,45]
[400395756,1767509743284,-132690.81022131,0.00043224,60]
[400395757,1767509745050,10000.0,0.00032877,120]
[400395762,1767509748785,-2020958.74757849,0.00043224,60]
[400395763,1767509748856,-500.0,0.00043228,120]
[400395764,1767509748931,-15900.0,0.00043229,60]
[400395765,1767509749004,-1000.0,0.00043233,120]
[400395766,1767509749075,-28211.984,0.00043236,60]
[400395767,1767509749140,-200.0,0.00043245,120]
[400395768,1767509749200,-12798.99009435,0.00043247,120]
[400395769,1767509749264,-151.83484316,0.00043252,120]
[400395770,1767509749332,-380.34033659,0.00043252,30]
[400395771,1767509749401,-380.34033659,0.00043252,30]
[400395772,1767509749467,-380.34033659,0.00043252,30]
[400395773,1767509749532,-150.89014659,0.00043263,30]
[400395774,1767509749599,-150.89014659,0.00043263,30]
[400395775,1767509749665,-1243.43450874,0.00043263,120]
[400395776,1767509749726,-1100.0,0.00043263,30]
[400395777,1767509749787,-5310.67869642,0.00043272,60]
[400395778,1767509749851,-500.0,0.00043273,120]
[400395779,1767509749920,-291.70829777,0.00043273,120]
[400395780,1767509750014,-845.3096569,0.00043273,30]
[400395781,1767509750078,-150.0,0.00043274,120]
[400395782,1767509750141,-152.56,0.00043289,120]
[400395783,1767509750207,-3909241.95102122,0.000433,120]
[400395784,1767509751821,10000.0,0.00032877,120]
[400395785,1767509759510,10000.0,0.00032877,120]
[400395786,1767509762418,-1090758.04897878,0.000433,120]
[400395787,1767509762492,-237.0071337,0.00043313,97]
[400395788,1767509762572,-152.56,0.00043389,120]
[400395790,1767509762645,-205.95079163,0.00043411,120]
[400395791,1767509762719,-298324.072,0.00043444,30]
[400395792,1767509762791,-152.56,0.00043489,120]
[400395793,1767509762866,-150.0,0.000435,120]
[400395794,1767509762942,-152.56,0.00043589,120]
[400395795,1767509763016,-152.56,0.00043689,120]
[400395796,1767509763091,-1700.0,0.000437,120]
[400395797,1767509763163,-1700.0,0.000437,90]
[400395798,1767509763231,-13685.91,0.000437,90]
[400395799,1767509763301,-13685.0066,0.000437,120]
[400395800,1767509763372,-13685.915,0.000437,120]
[400395801,1767509763454,-1595.0,0.000437,120]
[400395802,1767509763533,-967.98664252,0.000437,120]
[400395803,1767509763611,-1624.0,0.0004377,90]
[400395804,1767509763692,-152.56,0.00043789,120]
[400395805,1767509763762,-166.66,0.00043796,30]
[400395806,1767509763833,-501.2772862,0.000438,30]
[400395807,1767509763904,-854.91291528,0.000438,30]
[400395808,1767509763974,-161.90254744,0.000438,120]
[400395809,1767509764050,-153.0,0.000438,120]
[400395810,1767509764126,-363.84704886,0.000438,120]
[400395811,1767509764197,-158.59254853,0.00043835,120]
[400395812,1767509764270,-152.56,0.00043889,120]
[400395813,1767509764347,-152.0,0.000439,120]
[400395814,1767509764426,-4674.6292068,0.00043987,120]
[400395815,1767509764500,-152.89347115,0.00043989,120]
[400395816,1767509764580,-165.0,0.00044,120]
[400395817,1767509764660,-396.3783939,0.00044,120]
[400395818,1767509764732,-150.0,0.00044,120]
[400395819,1767509764801,-1666.0,0.00044,120]
[400395820,1767509764875,-5000.0,0.00044,120]
[400395821,1767509764947,-3502.42684311,0.00044,120]
[400395822,1767509765017,-50733.03092628,0.00044,120]
[400395823,1767509765090,-291.990225,0.00044,57]
[400395824,1767509765164,-245.8512867,0.00044078,100]
[400395825,1767509765233,-158.87640783,0.0004425,120]
[400395826,1767509765308,-4608.358281,0.000444,120]
[400395827,1767509765387,-157.8,0.000444,30]
[400395828,1767509765674,-150.0,0.000445,120]
[400395829,1767509765749,-1191.55576094,0.000445,120]
[400395830,1767509765829,-153.0,0.000445,120]
[400395831,1767509765905,-152.0,0.000447,120]
[400395832,1767509765976,-442.45806739,0.0004489,120]
[400395833,1767509766051,-763.74461097,0.000449,30]
[400395834,1767509766121,-897.41311793,0.0004495,120]
[400395835,1767509766191,-208.0,0.0004496,30]
[400395836,1767509766263,-21095.46574446,0.00044999,120]
[400395837,1767509766344,-1129.36250699,0.00045,32]
[400395838,1767509766419,-175.9022263,0.00045,60]
[400395839,1767509766489,-150.0,0.00045,120]
[400395840,1767509766557,-1666.0,0.00045,120]
[400395841,1767509766638,-153.37293538,0.00045,120]
[400395842,1767509766706,-223.90486834,0.00045,120]
[400395843,1767509766774,-22636.91,0.00045,60]
[400395844,1767509766840,-5000.0,0.00045,120]
[400395845,1767509766909,-164.28,0.00045,60]
[400395846,1767509766980,-158.9,0.00045,85]
[400395847,1767509767052,-5000.0,0.00045,120]
[400395848,1767509767121,-1440.2,0.00045,120]
[400395849,1767509767192,-24659.98548853,0.00045,120]
[400395850,1767509767265,-442.05126277,0.00045,30]
[400395851,1767509767340,-3067.45753225,0.00045,120]
[400395852,1767509767417,-353.80953382,0.00045,30]
[400395853,1767509767491,-267.28639255,0.00045,120]
[400395854,1767509767560,-5202.46438306,0.00045,90]
[400395855,1767509767635,-1420.23,0.00045,120]
[400395856,1767509767707,-197.38,0.00045067,120]
[400395857,1767509767773,-394.38217549,0.000452,120]
[400395858,1767509767839,-12798.99009435,0.00045247,120]
[400395859,1767509767911,-153.0,0.000453,120]
[400395860,1767509767984,-1100.0,0.00045426,30]
[400395861,1767509768059,-238659.2576,0.00045444,30]
[400395862,1767509768135,-150.0,0.000455,120]
[400395863,1767509768208,-152.0,0.000455,120]
[400395864,1767509768290,-264.3738475,0.00045609,105]
[400395865,1767509768369,-321.56357645,0.000457,120]
[400395866,1767509768448,-157.8,0.000459,30]
[400395867,1767509768521,-337.07,0.00045997,120]
[400395868,1767509768594,-1000.0,0.00046,30]
[400395869,1767509768668,-204.84227353,0.00046,30]
[400395870,1767509768744,-3273.93666166,0.00046,30]
[400395871,1767509768821,-150.0,0.00046,120]
[400395872,1767509768901,-1666.0,0.00046,120]
[400395873,1767509768984,-161.71369409,0.00046,120]
[400395874,1767509769059,-360.86881783,0.00046,90]
[400395875,1767509769132,-5000.0,0.00046,120]
[400395876,1767509769202,-39213.96715086,0.00046,30]
[400395877,1767509769274,-308.80328023,0.00046,120]
[400395878,1767509769348,-490.93229582,0.00046,120]
[400395879,1767509769424,-361.94235483,0.00046,120]
[400395880,1767509769497,-153.0,0.00046,120]
[400395881,1767509769575,-200.0,0.00046143,120]
[400395882,1767509769652,-152.0,0.000463,120]
[400395883,1767509769726,-274.03617773,0.00046375,108]
[400395884,1767509769795,-1360.0,0.000464,90]
[400395885,1767509769864,-1360.0,0.000464,120]
[400395886,1767509769931,-1360.0,0.000464,90]
[400395887,1767509769999,-2580.77,0.000464,90]
[400395888,1767509770069,-2580.77,0.000464,120]
[400395889,1767509770134,-2580.77,0.000464,120]
[400395890,1767509770203,-150.0,0.000465,120]
[400395891,1767509770273,-6173.52801385,0.00046667,120]
[400395892,1767509770349,-1134.87300444,0.000468,120]
[400395893,1767509770423,-153.0,0.000468,120]
[400395894,1767509770492,-2742.48559568,0.000469,120]
[400395895,1767509770562,-208.0,0.0004698,30]
[400395896,1767509770636,-616.83223975,0.00047,30]
[400395897,1767509770704,-150.0,0.00047,120]
[400395898,1767509770772,-1666.0,0.00047,120]
[400395899,1767509770839,-298.62990282,0.00047,120]
[400395900,1767509770908,-5000.0,0.00047,120]
[400395901,1767509770977,-10847.43959417,0.00047,30]
[400395902,1767509771050,-3190.6801762,0.00047,120]
[400395903,1767509771119,-298.88363177,0.00047,120]
[400395904,1767509771190,-195.95526712,0.00047,120]
[400395905,1767509771261,-152.0,0.000471,120]